[Event "Caplin Hastings Masters 2023-24"]
[Site "Hastings"]
[Date "2023.12.28"]
[Round "1.39"]
[White "Southcott-Moyers, Indy"]
[Black "Butt, Laurence"]
[Result "1-0"]
[ECO "A84"]
[WhiteElo "2123"]
[BlackElo "1688"]
[Annotator "ChessBase"]
[PlyCount "115"]
[EventDate "2023.12.18"]
[EventType "swiss"]
[EventCountry "ENG"]
[SourceTitle "playchess.com"]
[Source "ChessBase"]
[SourceQuality "1"]
[TimeControl "40/6000+30:3000+30"]

1. d4 {[%emt 0:00:01]} d5 {[%emt 0:00:35]} 2. c4 {[%emt 0:00:17]} e6 {[%emt 0:00:07]} 3. Nf3 {[%emt 0:00:30]} f5 {[%emt 0:00:18]} 4. Nc3 {[%emt 0:02:20]} Nf6 {[%emt 0:00:59]} 5. Bf4 {[%emt 0:00:07]} Be7 {[%emt 0:00:12]} 6. e3 {[%emt 0:01:53]} O-O {[%emt 0:00:07]} 7. Bd3 {[%emt 0:04:49]} c6 {[%emt 0:00:58]} 8. Qc2 {[%emt 0:01:33]} Ne4 {[%emt 0:04:45]} 9. h3 {[%emt 0:06:11]} Nd7 {[%emt 0:00:18]} 10. Bh2 {[%emt 0:03:46]} a6 {[%emt 0:11:23]} 11. O-O {[%emt 0:08:09]} b5 {[%emt 0:00:55]} 12. c5 {[%emt 0:08:22]} a5 {[%emt 0:02:10]} 13. Ne2 {[%emt 0:05:43]} g5 {[%emt 0:05:39]} 14. Ne5 {[%emt 0:05:12]} Nxe5 {[%emt 0:00:50]} 15. Bxe5 {[%emt 0:00:07]} Ba6 {[%emt 0:03:51]} 16. f3 {[%emt 0:04:23]} Nf6 {[%emt 0:00:15]} 17. a3 {[%emt 0:02:02]} Nd7 {[%emt 0:02:46]} 18. Bh2 {[%emt 0:00:37]} Nf6 {[%emt 0:07:26]} 19. b4 {[%emt 0:01:57]} Rf7 {[%emt 0:03:40]} 20. Nc1 {[%emt 0:07:39]} Bc8 {[%emt 0:02:21]} 21. Nb3 {[%emt 0:01:32]} a4 {[%emt 0:02:46]} 22. Na5 {[%emt 0:06:05]} Qd7 {[%emt 0:01:41]} 23. Be5 {[%emt 0:04:27]} Bd8 {[%emt 0:02:34]} 24. e4 {[%emt 0:03:15]} Bxa5 {[%emt 0:00:27]} 25. bxa5 {[%emt 0:00:06]} f4 {[%emt 0:01:31]} 26. Rae1 {[%emt 0:06:20]} Rxa5 {[%emt 0:08:28]} 27. Bxf6 {[%emt 0:04:01]} Rxf6 {[%emt 0:00:06]} 28. exd5 {[%emt 0:00:05]} Qxd5 {[%emt 0:04:13]} 29. Qc3 {[%emt 0:00:10]} Ra7 {[%emt 0:01:41]} 30. Re5 {[%emt 0:01:17]} Qb3 {[%emt 0:00:36]} 31. Rxg5+ {[%emt 0:02:08]} Kf7 {[%emt 0:01:16]} 32. Rc1 {[%emt 0:04:16]} Qxc3 {[%emt 0:00:24]} 33. Rxc3 {[%emt 0:00:02]} Rd7 {[%emt 0:01:19]} 34. Bxh7 {[%emt 0:01:46]} Rxd4 {[%emt 0:00:29]} 35. Be4 {[%emt 0:01:49]} Bd7 {[%emt 0:13:05]} 36. Kf2 {[%emt 0:05:23]} Rd2+ {[%emt 0:01:02]} 37. Ke1 {[%emt 0:01:26]} Rb2 {[%emt 0:00:07]} 38. Bc2 {[%emt 0:02:07]} Ra2 {[%emt 0:03:30]} 39. Kd2 {[%emt 0:01:43]} Ra1 {[%emt 0:02:13]} 40. Rd3 {[%emt 0:04:03]} Be8 {[%emt 0:00:56]} 41. Rc3 {[%emt 0:11:13]} Rh6 {[%emt 0:02:36]} 42. Be4 {[%emt 0:05:46]} Ra2+ {[%emt 0:00:59]} 43. Kc1 {[%emt 0:04:30]} Kf6 {[%emt 0:12:03]} 44. Rg4 {[%emt 0:02:33]} Ke5 {[%emt 0:03:55]} 45. Rg8 {[%emt 0:07:01]} Kd4 {[%emt 0:10:21]} 46. Rd3+ {[%emt 0:00:26]} Kxc5 {[%emt 0:00:30]} 47. Rxe8 {[%emt 0:00:10]} Rxg2 {[%emt 0:00:42]} 48. Rc8 {[%emt 0:02:52]} e5 {[%emt 0:00:37]} 49. Rc3+ {[%emt 0:02:21]} Kb6 {[%emt 0:05:44]} 50. R8xc6+ {[%emt 0:00:21]} Rxc6 {[%emt 0:00:08]} 51. Rxc6+ {[%emt 0:00:10]} Ka5 {[%emt 0:00:17]} 52. Rc5 {[%emt 0:01:47]} Ra2 {[%emt 0:00:46]} 53. Bd3 {[%emt 0:03:11]} Kb6 {[%emt 0:03:03]} 54. Rxb5+ {[%emt 0:00:45]} Kc6 {[%emt 0:00:12]} 55. Rxe5 {[%emt 0:00:06]} Rxa3 {[%emt 0:00:15]} 56. Be4+ {[%emt 0:00:07]} Kb6 {[%emt 0:01:28]} 57. Kb2 {[%emt 0:00:38]} Re3 {[%emt 0:00:59]} 58. h4 {[%emt 0:01:55]} 1-0

[Event "Caplin Hastings Masters 2023-24"]
[Site "Hastings"]
[Date "2023.12.28"]
[Round "1.40"]
[White "Rastogi, Nayan Keats"]
[Black "Ismail, Mohammed Aayan"]
[Result "0-1"]
[ECO "B12"]
[WhiteElo "1662"]
[BlackElo "2115"]
[Annotator "ChessBase"]
[PlyCount "100"]
[EventDate "2023.12.18"]
[EventType "swiss"]
[EventCountry "ENG"]
[SourceTitle "playchess.com"]
[Source "ChessBase"]
[SourceQuality "1"]
[TimeControl "40/6000+30:3000+30"]

1. e4 {[%emt 0:00:04]} c6 {[%emt 0:00:07]} 2. d4 {[%emt 0:00:04]} d5 {[%emt 0:00:23]} 3. e5 {[%emt 0:00:30]} Bf5 {[%emt 0:00:37]} 4. Nf3 {[%emt 0:00:11]} e6 {[%emt 0:00:28]} 5. c3 {[%emt 0:00:10]} Bg6 {[%emt 0:01:06]} 6. Be2 {[%emt 0:01:58]} Nh6 {[%emt 0:01:28]} 7. Bxh6 {[%emt 0:10:21]} gxh6 {[%emt 0:00:22]} 8. O-O {[%emt 0:06:34]} Bg7 {[%emt 0:02:55]} 9. Re1 {[%emt 0:01:01]} Nd7 {[%emt 0:01:47]} 10. Nbd2 {[%emt 0:03:18]} O-O {[%emt 0:00:59]} 11. Nf1 {[%emt 0:04:11]} f6 {[%emt 0:02:09]} 12. exf6 {[%emt 0:03:39]} Qxf6 {[%emt 0:00:57]} 13. Bd3 {[%emt 0:10:01]} Rae8 {[%emt 0:07:41]} 14. Bxg6 {[%emt 0:04:15]} Qxg6 {[%emt 0:03:20]} 15. Qb1 {[%emt 0:03:55]} Qf7 {[%emt 0:03:08]} 16. Qc2 {[%emt 0:02:23]} e5 {[%emt 0:07:36]} 17. dxe5 {[%emt 0:02:22]} Nxe5 {[%emt 0:00:18]} 18. Re3 {[%emt 0:11:38]} Nc4 {[%emt 0:15:42]} 19. Rxe8 {[%emt 0:01:46]} Rxe8 {[%emt 0:00:35]} 20. Re1 {[%emt 0:03:04]} Rxe1 {[%emt 0:00:37]} 21. Nxe1 {[%emt 0:00:11]} Qe6 {[%emt 0:07:28]} 22. Nf3 {[%emt 0:04:35]} Qe4 {[%emt 0:03:28]} 23. Qxe4 {[%emt 0:04:26]} dxe4 {[%emt 0:00:17]} 24. N3d2 {[%emt 0:10:21]} Nxb2 {[%emt 0:00:09]} 25. Nxe4 {[%emt 0:00:11]} Nd3 {[%emt 0:06:35]} 26. Ne3 {[%emt 0:03:32]} Nc1 {[%emt 0:02:53]} 27. a3 {[%emt 0:02:01]} Ne2+ {[%emt 0:40:55]} 28. Kf1 {[%emt 0:02:57]} Nxc3 {[%emt 0:00:00]} 29. Nd6 {[%emt 0:02:49]} Bf8 {[%emt 0:00:00]} 30. Nxb7 {[%emt 0:00:52]} Bxa3 {[%emt 0:00:00]} 31. Na5 {[%emt 0:01:37]} c5 {[%emt 0:00:00]} 32. Nc6 {[%emt 0:06:10]} a6 {[%emt 0:00:00]} 33. Nc2 {[%emt 0:01:11]} Bc1 {[%emt 0:00:00]} 34. Nb8 {[%emt 0:00:43]} a5 {[%emt 0:00:00]} 35. Nd7 {[%emt 0:00:49]} Na4 {[%emt 0:00:00]} 36. g3 {[%emt 0:00:54]} Bb2 {[%emt 0:00:00]} 37. f4 {[%emt 0:01:02]} Kf7 {[%emt 0:00:00]} 38. Ne3 {[%emt 0:01:08]} Ke6 {[%emt 0:00:00]} 39. Ne5 {[%emt 0:01:59]} Bxe5 {[%emt 0:00:00]} 40. fxe5 {[%emt 0:00:05]} Nb6 {[%emt 0:00:00]} 41. Ke2 {[%emt 0:51:31]} c4 {[%emt 0:46:58]} 42. Ng4 {[%emt 0:00:00]} a4 {[%emt 0:00:00]} 43. Kd2 {[%emt 0:00:00]} a3 {[%emt 0:00:00]} 44. Kc2 {[%emt 0:00:00]} Nd5 {[%emt 0:00:00]} 45. Nf2 {[%emt 0:00:00]} Nb4+ {[%emt 0:00:00]} 46. Kb1 {[%emt 0:00:00]} Kxe5 {[%emt 0:00:00]} 47. Nd1 {[%emt 0:00:00]} Kd4 {[%emt 0:00:00]} 48. g4 {[%emt 0:00:00]} c3 {[%emt 0:00:00]} 49. Nxc3 {[%emt 0:00:00]} Kxc3 {[%emt 0:00:00]} 50. g5 {[%emt 0:00:00]} a2+ {[%emt 0:00:00]} 0-1

[Event "Caplin Hastings Masters 2023-24"]
[Site "Hastings"]
[Date "2023.12.28"]
[Round "1.41"]
[White "Bai, Xue"]
[Black "Dewangan, Aayush"]
[Result "1-0"]
[ECO "B81"]
[WhiteElo "2099"]
[BlackElo "1655"]
[Annotator "NA"]
[PlyCount "113"]
[EventDate "2023.12.18"]
[EventType "swiss"]
[EventCountry "ENG"]
[SourceTitle "playchess.com"]
[Source "ChessBase"]
[SourceQuality "1"]
[TimeControl "40/6000+30:3000+30"]

1. e4 {[%emt 0:00:04]} c5 {[%emt 0:00:09]} 2. Nf3 {[%emt 0:00:06]} d6 {[%emt 0:00:06]} 3. d4 {[%emt 0:00:04]} cxd4 {[%emt 0:00:07]} 4. Nxd4 {[%emt 0:00:05]} Nf6 {[%emt 0:00:10]} 5. Nc3 {[%emt 0:00:06]} a6 {[%emt 0:00:05]} 6. h3 {[%emt 0:00:05]} e6 {[%emt 0:00:25]} 7. g4 {[%emt 0:00:39]} d5 {[%emt 0:00:52]} 8. exd5 {[%emt 0:05:32]} Nxd5 {[%emt 0:00:07]} 9. Bg2 {[%emt 0:01:45]} Bb4 {[%emt 0:09:42]} 10. Qd3 {[%emt 0:03:36]} O-O {[%emt 0:15:22]} 11. O-O {[%emt 0:01:26]} Bxc3 {[%emt 0:18:29]} 12. bxc3 {[%emt 0:00:06]} Qc7 {[%emt 0:06:54]} 13. Bxd5 {[%emt 0:04:11]} exd5 {[%emt 0:00:09]} 14. Ba3 {[%emt 0:00:25]} Rd8 {[%emt 0:03:27]} 15. Rfe1 {[%emt 0:04:29]} Nc6 {[%emt 0:03:05]} 16. Nxc6 {[%emt 0:04:35]} Qxc6 {[%emt 0:03:47]} 17. Qd4 {[%emt 0:03:58]} Be6 {[%emt 0:11:30]} 18. f4 {[%emt 0:05:15]} Qc4 {[%emt 0:03:48]} 19. f5 {[%emt 0:04:07]} Qxd4+ {[%emt 0:01:33]} 20. cxd4 {[%emt 0:00:05]} Bd7 {[%emt 0:00:45]} 21. Re5 {[%emt 0:03:08]} Bc6 {[%emt 0:04:27]} 22. g5 {[%emt 0:01:15]} Re8 {[%emt 0:03:00]} 23. Be7 {[%emt 0:01:54]} Rac8 {[%emt 0:04:26]} 24. Rae1 {[%emt 0:05:44]} Rc7 {[%emt 0:03:39]} 25. f6 {[%emt 0:03:52]} g6 {[%emt 0:01:40]} 26. c3 {[%emt 0:02:58]} Rd7 {[%emt 0:00:41]} 27. h4 {[%emt 0:01:52]} Bb5 {[%emt 0:02:05]} 28. Kf2 {[%emt 0:02:00]} Bd3 {[%emt 0:01:27]} 29. Bc5 {[%emt 0:00:41]} Re6 {[%emt 0:03:54]} 30. Rxe6 {[%emt 0:00:17]} fxe6 {[%emt 0:00:04]} 31. Rxe6 {[%emt 0:00:05]} Kf7 {[%emt 0:00:05]} 32. Rb6 {[%emt 0:04:07]} Bb5 {[%emt 0:01:18]} 33. Kf3 {[%emt 0:00:10]} Bc6 {[%emt 0:02:08]} 34. Kf4 {[%emt 0:01:10]} Rd8 {[%emt 0:00:45]} 35. Ke5 {[%emt 0:01:32]} Bb5 {[%emt 0:02:17]} 36. Rxb7+ {[%emt 0:00:34]} Rd7 {[%emt 0:00:20]} 37. Rxd7+ {[%emt 0:01:26]} Bxd7 {[%emt 0:00:08]} 38. Kxd5 {[%emt 0:00:08]} Be6+ {[%emt 0:00:18]} 39. Kc6 {[%emt 0:00:12]} Bxa2 {[%emt 0:00:07]} 40. d5 {[%emt 0:00:07]} Ke8 {[%emt 0:01:50]} 41. d6 {[%emt 0:50:19]} Be6 {[%emt 0:50:56]} 42. f7+ {[%emt 0:00:46]} Kxf7 {[%emt 0:00:12]} 43. d7 {[%emt 0:00:05]} Bxd7+ {[%emt 0:00:16]} 44. Kxd7 {[%emt 0:00:05]} a5 {[%emt 0:00:09]} 45. Kc6 {[%emt 0:00:15]} Ke6 {[%emt 0:00:08]} 46. Kb5 {[%emt 0:00:15]} Kf5 {[%emt 0:00:08]} 47. Kxa5 {[%emt 0:00:07]} Kg4 {[%emt 0:00:05]} 48. Be7 {[%emt 0:00:19]} Kxh4 {[%emt 0:00:10]} 49. c4 {[%emt 0:00:05]} Kg4 {[%emt 0:00:15]} 50. c5 {[%emt 0:00:10]} Kf5 {[%emt 0:00:07]} 51. Kb6 {[%emt 0:00:08]} h5 {[%emt 0:00:08]} 52. gxh6 {[%emt 0:00:07]} Ke6 {[%emt 0:00:05]} 53. h7 {[%emt 0:00:06]} Kxe7 {[%emt 0:00:06]} 54. h8=Q {[%emt 0:00:09]} Kd7 {[%emt 0:00:10]} 55. Qf6 {[%emt 0:00:23]} Kc8 {[%emt 0:00:05]} 56. Qe7 {[%emt 0:00:13]} g5 {[%emt 0:00:08]} 57. Qc7# {[%emt 0:00:04]} 1-0

[Event "Caplin Hastings Masters 2023-24"]
[Site "Hastings"]
[Date "2023.12.28"]
[Round "1.42"]
[White "Prudent, Sylvio"]
[Black "Brown, Thomas"]
[Result "0-1"]
[ECO "A06"]
[WhiteElo "1639"]
[BlackElo "2095"]
[Annotator "NA"]
[PlyCount "64"]
[EventDate "2023.12.18"]
[EventType "swiss"]
[EventCountry "ENG"]
[SourceTitle "playchess.com"]
[Source "ChessBase"]
[SourceQuality "1"]
[TimeControl "40/6000+30:3000+30"]

1. b3 {[%emt 0:00:05]} d5 {[%emt 0:00:18]} 2. Bb2 {[%emt 0:00:08]} Bf5 {[%emt 0:00:11]} 3. e3 {[%emt 0:00:18]} e6 {[%emt 0:00:28]} 4. Nf3 {[%emt 0:00:21]} Nf6 {[%emt 0:00:20]} 5. Be2 {[%emt 0:00:21]} h6 {[%emt 0:00:29]} 6. O-O {[%emt 0:01:26]} Bd6 {[%emt 0:01:13]} 7. Ne5 {[%emt 0:01:31]} Nbd7 {[%emt 0:03:44]} 8. d4 {[%emt 0:02:53]} O-O {[%emt 0:00:30]} 9. f4 {[%emt 0:01:39]} c5 {[%emt 0:04:14]} 10. Nd2 {[%emt 0:05:25]} Rc8 {[%emt 0:06:23]} 11. Rc1 {[%emt 0:01:10]} cxd4 {[%emt 0:03:12]} 12. exd4 {[%emt 0:00:39]} Ne4 {[%emt 0:01:11]} 13. c4 {[%emt 0:13:15]} Bxe5 {[%emt 0:08:24]} 14. Nxe4 {[%emt 0:03:31]} Bxf4 {[%emt 0:02:05]} 15. Rxf4 {[%emt 0:00:56]} Bxe4 {[%emt 0:00:07]} 16. Qe1 {[%emt 0:05:15]} f5 {[%emt 0:07:47]} 17. Qb4 {[%emt 0:29:17]} Qb6 {[%emt 0:09:34]} 18. Qe7 {[%emt 0:02:25]} Rf7 {[%emt 0:01:57]} 19. Qa3 {[%emt 0:01:06]} g5 {[%emt 0:04:27]} 20. Rf2 {[%emt 0:01:10]} Nf6 {[%emt 0:00:48]} 21. c5 {[%emt 0:00:59]} Qd8 {[%emt 0:01:02]} 22. b4 {[%emt 0:01:01]} a6 {[%emt 0:02:06]} 23. Qh3 {[%emt 0:04:03]} h5 {[%emt 0:03:34]} 24. Qg3 {[%emt 0:00:23]} Ng4 {[%emt 0:01:54]} 25. Bxg4 {[%emt 0:08:51]} hxg4 {[%emt 0:01:43]} 26. Qe5 {[%emt 0:01:24]} Qe7 {[%emt 0:08:22]} 27. Re1 {[%emt 0:05:09]} Rcf8 {[%emt 0:04:04]} 28. a4 {[%emt 0:05:07]} Qf6 {[%emt 0:07:58]} 29. Qg3 {[%emt 0:03:38]} Qh6 {[%emt 0:04:20]} 30. Qd6 {[%emt 0:02:46]} f4 {[%emt 0:02:23]} 31. b5 {[%emt 0:00:53]} g3 {[%emt 0:02:08]} 32. hxg3 {[%emt 0:04:41]} fxg3 {[%emt 0:00:07]} 0-1

[Event "Caplin Hastings Masters 2023-24"]
[Site "Hastings"]
[Date "2023.12.28"]
[Round "1.43"]
[White "Walker, Martin G"]
[Black "Han, Qixuan"]
[Result "1/2-1/2"]
[ECO "B51"]
[WhiteElo "2090"]
[BlackElo "1603"]
[Annotator "NA"]
[PlyCount "51"]
[EventDate "2023.12.18"]
[EventType "swiss"]
[EventCountry "ENG"]
[SourceTitle "playchess.com"]
[Source "ChessBase"]
[SourceQuality "1"]
[TimeControl "40/6000+30:3000+30"]

1. e4 {[%emt 0:00:03]} c5 {[%emt 0:00:06]} 2. Nf3 {[%emt 0:00:04]} d6 {[%emt 0:00:04]} 3. Bb5+ {[%emt 0:00:05]} Nd7 {[%emt 0:00:05]} 4. d4 {[%emt 0:00:09]} cxd4 {[%emt 0:00:06]} 5. Qxd4 {[%emt 0:00:06]} a6 {[%emt 0:00:03]} 6. Bxd7+ {[%emt 0:00:07]} Bxd7 {[%emt 0:00:09]} 7. Nc3 {[%emt 0:01:20]} Nf6 {[%emt 0:00:23]} 8. O-O {[%emt 0:00:34]} g6 {[%emt 0:00:13]} 9. a4 {[%emt 0:00:57]} a5 {[%emt 0:01:52]} 10. Be3 {[%emt 0:07:17]} Bg7 {[%emt 0:01:32]} 11. Qd3 {[%emt 0:00:05]} O-O {[%emt 0:01:02]} 12. Rab1 {[%emt 0:00:30]} Bc6 {[%emt 0:05:30]} 13. Nd4 {[%emt 0:08:48]} Rc8 {[%emt 0:03:47]} 14. f3 {[%emt 0:02:50]} Qd7 {[%emt 0:03:00]} 15. b4 {[%emt 0:00:43]} axb4 {[%emt 0:01:03]} 16. Rxb4 {[%emt 0:00:06]} Ra8 {[%emt 0:02:08]} 17. Nxc6 {[%emt 0:13:38]} Qxc6 {[%emt 0:01:24]} 18. Rfb1 {[%emt 0:00:12]} Rfc8 {[%emt 0:00:54]} 19. R1b3 {[%emt 0:00:15]} Nd7 {[%emt 0:02:59]} 20. Nd5 {[%emt 0:31:17]} Bf6 {[%emt 0:09:06]} 21. Ra3 {[%emt 0:18:56]} Qxc2 {[%emt 0:06:30]} 22. Qxc2 {[%emt 0:00:12]} Rxc2 {[%emt 0:00:02]} 23. Rxb7 {[%emt 0:00:10]} Nc5 {[%emt 0:00:28]} 24. Bxc5 {[%emt 0:09:00]} dxc5 {[%emt 0:02:35]} 25. Rb1 {[%emt 0:05:20]} Ra5 {[%emt 0:02:11]} 26. Nxf6+ {[%emt 0:05:20]} 1/2-1/2

[Event "Caplin Hastings Masters 2023-24"]
[Site "Hastings"]
[Date "2023.12.28"]
[Round "1.44"]
[White "Nainika, Gupta"]
[Black "Gimenez Menchon, Cesar"]
[Result "1/2-1/2"]
[ECO "E61"]
[WhiteElo "1543"]
[BlackElo "2088"]
[Annotator "NA"]
[PlyCount "68"]
[EventDate "2023.12.18"]
[EventType "swiss"]
[EventCountry "ENG"]
[SourceTitle "playchess.com"]
[Source "ChessBase"]
[SourceQuality "1"]
[TimeControl "40/6000+30:3000+30"]

1. Nf3 {[%emt 0:00:30]} d6 {[%emt 0:00:21]} 2. d4 {[%emt 0:01:56]} Nf6 {[%emt 0:00:12]} 3. c4 {[%emt 0:01:38]} g6 {[%emt 0:00:18]} 4. Nc3 {[%emt 0:00:47]} Bf5 {[%emt 0:01:28]} 5. Qb3 {[%emt 0:08:33]} Qc8 {[%emt 0:03:31]} 6. Nh4 {[%emt 0:09:24]} Bd7 {[%emt 0:00:34]} 7. h3 {[%emt 0:08:14]} Bg7 {[%emt 0:01:46]} 8. e4 {[%emt 0:02:23]} e5 {[%emt 0:03:21]} 9. d5 {[%emt 0:03:38]} Na6 {[%emt 0:04:54]} 10. Be3 {[%emt 0:11:48]} b6 {[%emt 0:00:28]} 11. Qc2 {[%emt 0:02:09]} Nb4 {[%emt 0:00:48]} 12. Qc1 {[%emt 0:01:53]} a5 {[%emt 0:00:57]} 13. Be2 {[%emt 0:02:49]} O-O {[%emt 0:05:39]} 14. O-O {[%emt 0:03:37]} Kh8 {[%emt 0:16:37]} 15. Bh6 {[%emt 0:06:02]} Bxh6 {[%emt 0:08:19]} 16. Qxh6 {[%emt 0:00:39]} Nc2 {[%emt 0:03:18]} 17. Rac1 {[%emt 0:10:15]} Nd4 {[%emt 0:00:08]} 18. Bd1 {[%emt 0:01:29]} Ng8 {[%emt 0:06:58]} 19. Qg5 {[%emt 0:04:18]} f6 {[%emt 0:03:18]} 20. Qg3 {[%emt 0:02:03]} Qe8 {[%emt 0:12:07]} 21. Nf3 {[%emt 0:03:36]} f5 {[%emt 0:02:34]} 22. Qh4 {[%emt 0:05:06]} Nxf3+ {[%emt 0:10:50]} 23. Bxf3 {[%emt 0:00:11]} Nf6 {[%emt 0:00:29]} 24. Rfe1 {[%emt 0:04:51]} f4 {[%emt 0:00:26]} 25. Be2 {[%emt 0:01:25]} Qe7 {[%emt 0:02:17]} 26. Bf1 {[%emt 0:00:48]} Qg7 {[%emt 0:05:01]} 27. f3 {[%emt 0:01:41]} g5 {[%emt 0:00:34]} 28. Qf2 {[%emt 0:00:10]} h5 {[%emt 0:00:21]} 29. Nb5 {[%emt 0:01:35]} Rac8 {[%emt 0:01:20]} 30. Nxc7 {[%emt 0:02:40]} Rxc7 {[%emt 0:00:32]} 31. Qxb6 {[%emt 0:00:10]} Ne8 {[%emt 0:01:06]} 32. Qxa5 {[%emt 0:00:13]} g4 {[%emt 0:00:32]} 33. hxg4 {[%emt 0:01:16]} hxg4 {[%emt 0:00:11]} 34. Qc3 {[%emt 0:02:08]} g3 {[%emt 0:01:28]} 1/2-1/2

[Event "Caplin Hastings Masters 2023-24"]
[Site "Hastings"]
[Date "2023.12.28"]
[Round "1.45"]
[White "Weersing, Abigail Riis"]
[Black "Seo, Juwon"]
[Result "1-0"]
[ECO "E39"]
[WhiteElo "2056"]
[BlackElo "1405"]
[Annotator "NA"]
[PlyCount "127"]
[EventDate "2023.12.18"]
[EventType "swiss"]
[EventCountry "ENG"]
[SourceTitle "playchess.com"]
[Source "ChessBase"]
[SourceQuality "1"]
[TimeControl "40/6000+30:3000+30"]

1. d4 {[%emt 0:00:02]} Nf6 {[%emt 0:00:56]} 2. c4 {[%emt 0:00:09]} e6 {[%emt 0:04:10]} 3. Nc3 {[%emt 0:00:08]} Bb4 {[%emt 0:01:44]} 4. Qc2 {[%emt 0:00:11]} O-O {[%emt 0:12:27]} 5. Nf3 c5 {[%emt 0:08:12]} 6. dxc5 {[%emt 0:01:13]} Na6 {[%emt 0:00:57]} 7. a3 {[%emt 0:02:28]} Bxc3+ {[%emt 0:00:00]} 8. Qxc3 {[%emt 0:00:09]} Nxc5 {[%emt 0:07:03]} 9. e3 {[%emt 0:01:30]} b6 {[%emt 0:00:00]} 10. b4 {[%emt 0:07:25]} Nce4 {[%emt 0:00:00]} 11. Qc2 {[%emt 0:00:59]} Bb7 {[%emt 0:00:00]} 12. Bd3 {[%emt 0:02:41]} Rc8 {[%emt 0:02:50]} 13. O-O {[%emt 0:02:16]} d5 {[%emt 0:00:00]} 14. Qa2 {[%emt 0:14:53]} dxc4 {[%emt 0:06:28]} 15. Bxc4 {[%emt 0:02:59]} Nc3 {[%emt 0:00:21]} 16. Qb3 {[%emt 0:00:54]} Bxf3 {[%emt 0:01:23]} 17. gxf3 {[%emt 0:00:44]} b5 {[%emt 0:00:19]} 18. Qxc3 {[%emt 0:00:45]} Rxc4 {[%emt 0:00:49]} 19. Qe5 {[%emt 0:04:18]} Qd3 {[%emt 0:01:46]} 20. Bb2 {[%emt 0:08:31]} Qe2 {[%emt 0:08:10]} 21. Kg2 {[%emt 0:03:28]} Rh4 {[%emt 0:03:19]} 22. Rfe1 {[%emt 0:07:24]} Qc2 {[%emt 0:06:36]} 23. Rac1 {[%emt 0:01:16]} Qg6+ {[%emt 0:03:49]} 24. Qg3 {[%emt 0:05:55]} Qh6 {[%emt 0:01:18]} 25. Rg1 {[%emt 0:07:02]} Kh8 {[%emt 0:03:01]} 26. Kh1 {[%emt 0:04:19]} Rg8 {[%emt 0:02:15]} 27. Rc7 {[%emt 0:02:20]} Rh3 {[%emt 0:05:14]} 28. Qg2 {[%emt 0:00:39]} Rf8 {[%emt 0:05:48]} 29. Rxa7 {[%emt 0:01:02]} Rh5 {[%emt 0:05:42]} 30. Qg3 {[%emt 0:04:01]} Rh3 {[%emt 0:02:33]} 31. Qg2 {[%emt 0:00:32]} Rh5 {[%emt 0:01:04]} 32. Rb7 {[%emt 0:01:02]} Ne8 {[%emt 0:01:49]} 33. Rb8 {[%emt 0:05:34]} f6 {[%emt 0:01:28]} 34. f4 {[%emt 0:00:46]} Rh3 {[%emt 0:01:05]} 35. Bd4 {[%emt 0:06:39]} Rg8 {[%emt 0:01:07]} 36. Rxb5 {[%emt 0:02:37]} Nd6 {[%emt 0:00:56]} 37. Rb6 {[%emt 0:01:28]} Ne4 {[%emt 0:01:46]} 38. Rb7 {[%emt 0:02:48]} Nd2 {[%emt 0:01:30]} 39. Qxg7+ {[%emt 0:02:04]} Qxg7 {[%emt 0:00:48]} 40. Rgxg7 {[%emt 0:00:17]} Nf3 {[%emt 0:01:29]} 41. Rxg8+ {[%emt 0:50:06]} Kxg8 {[%emt 0:50:06]} 42. Kg2 {[%emt 0:00:08]} Rxh2+ {[%emt 0:00:40]} 43. Kxf3 {[%emt 0:00:07]} h5 {[%emt 0:00:04]} 44. Bxf6 {[%emt 0:00:16]} h4 {[%emt 0:00:05]} 45. Bxh4 {[%emt 0:00:10]} Rxh4 {[%emt 0:00:05]} 46. Ke4 {[%emt 0:00:07]} Rh5 {[%emt 0:00:05]} 47. Re7 {[%emt 0:00:08]} Kf8 {[%emt 0:00:05]} 48. Rxe6 {[%emt 0:00:05]} Kf7 {[%emt 0:00:02]} 49. Re5 {[%emt 0:00:05]} Rh6 {[%emt 0:00:04]} 50. a4 {[%emt 0:00:24]} Ra6 {[%emt 0:00:06]} 51. a5 {[%emt 0:00:04]} Rc6 {[%emt 0:00:04]} 52. Rc5 {[%emt 0:00:10]} Re6+ {[%emt 0:00:04]} 53. Kd5 {[%emt 0:00:13]} Re8 {[%emt 0:00:06]} 54. a6 {[%emt 0:00:11]} Ra8 {[%emt 0:00:03]} 55. b5 {[%emt 0:00:06]} Kf6 {[%emt 0:00:08]} 56. Rc7 {[%emt 0:00:12]} Kf5 {[%emt 0:00:05]} 57. a7 {[%emt 0:00:05]} Kg6 {[%emt 0:00:05]} 58. b6 {[%emt 0:00:04]} Rd8+ {[%emt 0:00:02]} 59. Ke4 {[%emt 0:00:07]} Ra8 {[%emt 0:00:03]} 60. b7 {[%emt 0:00:04]} Rxa7 {[%emt 0:00:02]} 61. b8=Q {[%emt 0:00:07]} Ra4+ {[%emt 0:00:04]} 62. Kf3 {[%emt 0:00:03]} Ra5 {[%emt 0:00:05]} 63. Qb6+ {[%emt 0:00:08]} Kf5 {[%emt 0:00:06]} 64. Rf7# {[%emt 0:00:08]} 1-0

[Event "Caplin Hastings Masters 2023-24"]
[Site "Hastings"]
[Date "2023.12.28"]
[Round "1.46"]
[White "Kim, Sumin"]
[Black "Evenshaug, Amadeus Hestvik"]
[Result "0-1"]
[ECO "A57"]
[WhiteElo "1358"]
[BlackElo "2041"]
[Annotator "NA"]
[PlyCount "66"]
[EventDate "2023.12.18"]
[EventType "swiss"]
[EventCountry "ENG"]
[SourceTitle "playchess.com"]
[Source "ChessBase"]
[SourceQuality "1"]
[TimeControl "40/6000+30:3000+30"]

1. d4 {[%emt 0:00:02]} Nf6 {[%emt 0:00:12]} 2. c4 {[%emt 0:00:58]} c5 {[%emt 0:01:16]} 3. d5 {[%emt 0:05:41]} b5 {[%emt 0:02:22]} 4. Nd2 {[%emt 0:02:39]} bxc4 {[%emt 0:04:06]} 5. Nxc4 {[%emt 0:05:07]} d6 {[%emt 0:08:30]} 6. f3 {[%emt 0:10:44]} g6 {[%emt 0:02:05]} 7. b3 {[%emt 0:04:29]} Bg7 {[%emt 0:00:32]} 8. Bb2 {[%emt 0:00:18]} Ba6 {[%emt 0:05:37]} 9. e4 {[%emt 0:11:35]} Bxc4 {[%emt 0:21:16]} 10. Bxc4 {[%emt 0:05:20]} Qa5+ {[%emt 0:00:22]} 11. Kf1 {[%emt 0:16:06]} O-O {[%emt 0:06:00]} 12. Ne2 {[%emt 0:03:16]} Ng4 {[%emt 0:03:23]} 13. Qc1 {[%emt 0:01:09]} Bxb2 {[%emt 0:06:03]} 14. Qxb2 {[%emt 0:00:21]} Ne3+ {[%emt 0:00:59]} 15. Kf2 {[%emt 0:01:43]} Nxc4 {[%emt 0:00:07]} 16. bxc4 {[%emt 0:00:18]} Nd7 {[%emt 0:00:17]} 17. f4 {[%emt 0:05:30]} Rab8 {[%emt 0:02:05]} 18. Qc2 {[%emt 0:01:54]} Rb4 {[%emt 0:03:28]} 19. Rhb1 {[%emt 0:02:42]} Rfb8 {[%emt 0:01:50]} 20. Nc1 {[%emt 0:14:46]} Qa6 {[%emt 0:04:06]} 21. Nb3 {[%emt 0:04:41]} Rxc4 {[%emt 0:00:45]} 22. Qd3 {[%emt 0:02:03]} Qa4 {[%emt 0:03:05]} 23. Re1 {[%emt 0:01:56]} Rbb4 {[%emt 0:04:25]} 24. Kf3 {[%emt 0:01:12]} f5 {[%emt 0:00:44]} 25. Nd2 {[%emt 0:01:22]} Rd4 {[%emt 0:00:38]} 26. Qe2 {[%emt 0:06:53]} Qc2 {[%emt 0:02:21]} 27. Rad1 {[%emt 0:00:29]} fxe4+ {[%emt 0:05:27]} 28. Nxe4 {[%emt 0:00:34]} Qxe2+ {[%emt 0:00:09]} 29. Rxe2 {[%emt 0:00:36]} Rxd1 {[%emt 0:00:09]} 30. Ng5 {[%emt 0:00:26]} Rd3+ {[%emt 0:00:12]} 31. Kg4 {[%emt 0:00:39]} Nf6+ {[%emt 0:00:32]} 32. Kh4 {[%emt 0:00:26]} Rxf4+ {[%emt 0:00:06]} 33. g4 {[%emt 0:00:09]} Rxg4# {[%emt 0:00:06]} 0-1